[Event "Late-Titled-Tuesday-Blitz-April-30-2024"]
[Site "Chess.com"]
[Date "2024.04.30"]
[Round "9"]
[White "ArrestingPieces"]
[Black "GothamChess"]
[Result "0-1"]
[WhiteElo "2532"]
[BlackElo "2693"]
[TimeControl "180+1"]
[EndTime "15:43:08 PDT"]
[Termination "GothamChess won by resignation"]

1. e4 {[%clk 0:02:58.7]} 1... d5 {[%clk 0:02:40.1]} 2. exd5 {[%clk 0:02:58.4]}
2... Qxd5 {[%clk 0:02:41]} 3. Nc3 {[%clk 0:02:58.6]} 3... Qa5 {[%clk 0:02:41.5]}
4. d4 {[%clk 0:02:59.3]} 4... Nf6 {[%clk 0:02:41.7]} 5. Nf3 {[%clk 0:02:59.6]}
5... Bf5 {[%clk 0:02:40.7]} 6. Bc4 {[%clk 0:02:57.4]} 6... e6 {[%clk 0:02:40.9]}
7. Bd2 {[%clk 0:02:57.5]} 7... Bb4 {[%clk 0:02:40.3]} 8. Qe2 {[%clk 0:02:57.2]}
8... O-O {[%clk 0:02:37.2]} 9. O-O-O {[%clk 0:02:52.2]} 9... Nc6 {[%clk
0:02:35.6]} 10. Nb5 {[%clk 0:01:48.5]} 10... a6 {[%clk 0:02:21.4]} 11. Nc3
{[%clk 0:01:37.9]} 11... b5 {[%clk 0:02:16.4]} 12. Bb3 {[%clk 0:01:38]} 12...
Rad8 {[%clk 0:02:12.1]} 13. Kb1 {[%clk 0:01:05.9]} 13... Bg4 {[%clk 0:01:39.9]}
14. Bg5 {[%clk 0:00:58.4]} 14... Bxc3 {[%clk 0:01:23.6]} 15. bxc3 {[%clk
0:00:49.8]} 15... Nd5 {[%clk 0:01:07]} 16. Bd2 {[%clk 0:00:31.1]} 16... Nxc3+
{[%clk 0:00:55.8]} 17. Bxc3 {[%clk 0:00:31.2]} 17... Qxc3 {[%clk 0:00:56.7]} 18.
Qd2 {[%clk 0:00:25.9]} 18... Qxd2 {[%clk 0:00:53.6]} 19. Rxd2 {[%clk 0:00:26.8]}
19... Bxf3 {[%clk 0:00:53.8]} 20. gxf3 {[%clk 0:00:27.7]} 20... Rxd4 {[%clk
0:00:52.2]} 21. Rhd1 {[%clk 0:00:28]} 21... Rfd8 {[%clk 0:00:50.6]} 22. Rxd4
{[%clk 0:00:24.7]} 22... Rxd4 {[%clk 0:00:50.6]} 23. Re1 {[%clk 0:00:25.5]}
23... Kf8 {[%clk 0:00:46.1]} 24. c3 {[%clk 0:00:25.7]} 24... Rd3 {[%clk
0:00:45.3]} 25. Re3 {[%clk 0:00:22.5]} 25... Rxe3 {[%clk 0:00:42.8]} 26. fxe3
{[%clk 0:00:23.4]} 26... Ke7 {[%clk 0:00:42.9]} 27. Bc2 {[%clk 0:00:22.9]} 27...
h6 {[%clk 0:00:42]} 28. f4 {[%clk 0:00:22.8]} 28... Kd6 {[%clk 0:00:42.5]} 29.
Be4 {[%clk 0:00:22.9]} 29... f5 {[%clk 0:00:41.8]} 30. Bf3 {[%clk 0:00:22.9]}
30... e5 {[%clk 0:00:39.6]} 31. Kc2 {[%clk 0:00:22.5]} 31... Na5 {[%clk
0:00:36]} 32. Kd3 {[%clk 0:00:19.3]} 32... e4+ {[%clk 0:00:36]} 0-1

[Event "Late-Titled-Tuesday-Blitz-April-30-2024"]
[Site "Chess.com"]
[Date "2024.04.30"]
[Round "9"]
[White "Romadk"]
[Black "cthake"]
[Result "1-0"]
[WhiteElo "2480"]
[BlackElo "1879"]
[TimeControl "180+1"]
[EndTime "15:43:08 PDT"]
[Termination "Romadk won on time"]

1. d4 {[%clk 0:03:00.9]} 1... Nf6 {[%clk 0:02:58.5]} 2. Nf3 {[%clk 0:02:59.9]}
2... e6 {[%clk 0:02:53.3]} 3. g3 {[%clk 0:03:00]} 3... d5 {[%clk 0:02:52.2]} 4.
Bg2 {[%clk 0:03:00.4]} 4... c5 {[%clk 0:02:52.2]} 5. O-O {[%clk 0:03:00.6]} 5...
Nc6 {[%clk 0:02:51.9]} 6. c4 {[%clk 0:02:59.8]} 6... cxd4 {[%clk 0:02:39.3]} 7.
Nxd4 {[%clk 0:02:56.5]} 7... Bc5 {[%clk 0:02:35.2]} 8. Nxc6 {[%clk 0:02:51.4]}
8... bxc6 {[%clk 0:02:35.2]} 9. Qc2 {[%clk 0:02:51.4]} 9... Be7 {[%clk
0:01:59.8]} 10. Rd1 {[%clk 0:02:46.4]} 10... O-O {[%clk 0:01:57.8]} 11. Nc3
{[%clk 0:02:44.4]} 11... Ba6 {[%clk 0:01:51.4]} 12. b3 {[%clk 0:02:41.5]} 12...
Qc7 {[%clk 0:01:42.2]} 13. Na4 {[%clk 0:02:38.2]} 13... dxc4 {[%clk 0:01:10.7]}
14. bxc4 {[%clk 0:02:35]} 14... Rad8 {[%clk 0:01:09]} 15. Bf4 {[%clk 0:02:27.8]}
15... e5 {[%clk 0:01:05.1]} 16. Be3 {[%clk 0:02:28]} 16... c5 {[%clk 0:00:40.5]}
17. Rab1 {[%clk 0:02:13]} 17... Rb8 {[%clk 0:00:38.3]} 18. Nb2 {[%clk
0:02:00.9]} 18... Rb4 {[%clk 0:00:37.3]} 19. a3 {[%clk 0:01:57.2]} 19... Rbb8
{[%clk 0:00:35.9]} 20. Nd3 {[%clk 0:01:57]} 20... Rxb1 {[%clk 0:00:34.8]} 21.
Rxb1 {[%clk 0:01:56.7]} 21... e4 {[%clk 0:00:27.8]} 22. Nf4 {[%clk 0:01:50.9]}
22... Bb7 {[%clk 0:00:26.6]} 23. Qb3 {[%clk 0:01:41.9]} 23... Rb8 {[%clk
0:00:21.5]} 24. Nd5 {[%clk 0:01:29.5]} 24... Nxd5 {[%clk 0:00:20.5]} 25. cxd5
{[%clk 0:01:30.1]} 25... Bd6 {[%clk 0:00:19.1]} 26. Bxe4 {[%clk 0:01:26.7]}
26... a6 {[%clk 0:00:17.5]} 27. Qc2 {[%clk 0:01:16.3]} 27... c4 {[%clk
0:00:17.3]} 28. Bxh7+ {[%clk 0:01:15.7]} 28... Kh8 {[%clk 0:00:16.1]} 29. Be4
{[%clk 0:01:12.5]} 29... Bxa3 {[%clk 0:00:13.3]} 30. Bd4 {[%clk 0:01:07.2]}
30... Bd6 {[%clk 0:00:08.2]} 31. Qd2 {[%clk 0:01:06.4]} 31... f6 {[%clk
0:00:01.6]} 32. Bxf6 {[%clk 0:00:55.8]} 1-0

[Event "Late-Titled-Tuesday-Blitz-April-30-2024"]
[Site "Chess.com"]
[Date "2024.04.30"]
[Round "9"]
[White "Polish_fighter3000"]
[Black "bascheyaro"]
[Result "0-1"]
[WhiteElo "3068"]
[BlackElo "2864"]
[TimeControl "180+1"]
[EndTime "15:43:10 PDT"]
[Termination "bascheyaro won by resignation"]

1. e4 {[%clk 0:03:00.9]} 1... e6 {[%clk 0:03:00.2]} 2. d4 {[%clk 0:02:59]} 2...
d5 {[%clk 0:03:00.6]} 3. Nc3 {[%clk 0:02:59.9]} 3... Bb4 {[%clk 0:03:00.4]} 4.
e5 {[%clk 0:02:59.4]} 4... Ne7 {[%clk 0:03:00.7]} 5. a3 {[%clk 0:02:57.7]} 5...
Bxc3+ {[%clk 0:03:01.1]} 6. bxc3 {[%clk 0:02:58.6]} 6... b6 {[%clk 0:03:01.9]}
7. Qg4 {[%clk 0:02:55]} 7... O-O {[%clk 0:03:02.2]} 8. Bg5 {[%clk 0:02:44.9]}
8... Nd7 {[%clk 0:03:01.8]} 9. Bd3 {[%clk 0:02:29.5]} 9... f5 {[%clk 0:02:56]}
10. exf6 {[%clk 0:02:26.4]} 10... Nxf6 {[%clk 0:02:56.2]} 11. Qh4 {[%clk
0:02:20]} 11... Nf5 {[%clk 0:02:50.6]} 12. Bxf5 {[%clk 0:02:19.7]} 12... exf5
{[%clk 0:02:51.2]} 13. Nf3 {[%clk 0:02:20.2]} 13... Qe8+ {[%clk 0:02:49.6]} 14.
Ne5 {[%clk 0:02:18.3]} 14... Ba6 {[%clk 0:02:42.2]} 15. f3 {[%clk 0:02:12.7]}
15... Nd7 {[%clk 0:02:31.6]} 16. Bf4 {[%clk 0:02:06.6]} 16... c5 {[%clk
0:02:29.2]} 17. Kf2 {[%clk 0:01:46.1]} 17... cxd4 {[%clk 0:02:29.4]} 18. cxd4
{[%clk 0:01:45.5]} 18... Rc8 {[%clk 0:02:28.7]} 19. Rac1 {[%clk 0:01:46.1]}
19... Nf6 {[%clk 0:02:23.9]} 20. Bg5 {[%clk 0:01:36.5]} 20... Qa4 {[%clk
0:02:20.3]} 21. Rhe1 {[%clk 0:01:30.3]} 21... Rxc2+ {[%clk 0:02:17]} 22. Rxc2
{[%clk 0:01:29]} 22... Qxc2+ {[%clk 0:02:17.9]} 23. Kg1 {[%clk 0:01:29.4]} 23...
Bb5 {[%clk 0:01:56.4]} 24. Rc1 {[%clk 0:01:15.2]} 24... Qb2 {[%clk 0:01:51.1]}
25. Rc7 {[%clk 0:00:48.5]} 25... Ne4 {[%clk 0:01:41.5]} 26. Be3 {[%clk
0:00:16.9]} 26... Qe2 {[%clk 0:01:33.5]} 27. Rxg7+ {[%clk 0:00:15.3]} 27... Kxg7
{[%clk 0:01:33.6]} 28. Qh6+ {[%clk 0:00:10]} 28... Kg8 {[%clk 0:01:30.1]} 29. h3
{[%clk 0:00:10.2]} 29... Qe1+ {[%clk 0:01:24.3]} 30. Kh2 {[%clk 0:00:10.4]}
30... Qg3+ {[%clk 0:01:24.5]} 31. Kh1 {[%clk 0:00:09.7]} 31... Bf1 {[%clk
0:01:05.2]} 32. Qe6+ {[%clk 0:00:09.5]} 32... Kh8 {[%clk 0:01:05.4]} 33. Nf7+
{[%clk 0:00:07.3]} 33... Rxf7 {[%clk 0:01:05.8]} 34. Qc8+ {[%clk 0:00:03.7]}
34... Kg7 {[%clk 0:01:05.7]} 35. Bh6+ {[%clk 0:00:03.5]} 35... Kxh6 {[%clk
0:01:05.3]} 36. Qc1+ {[%clk 0:00:03.8]} 36... Qg5 {[%clk 0:01:02.5]} 0-1

[Event "Late-Titled-Tuesday-Blitz-April-30-2024"]
[Site "Chess.com"]
[Date "2024.04.30"]
[Round "9"]
[White "FredddieCroderg"]
[Black "manitodeplomo"]
[Result "0-1"]
[WhiteElo "2450"]
[BlackElo "2621"]
[TimeControl "180+1"]
[EndTime "15:43:16 PDT"]
[Termination "manitodeplomo won on time"]

1. e4 {[%clk 0:03:00.9]} 1... Nf6 {[%clk 0:02:58.2]} 2. e5 {[%clk 0:02:55.1]}
2... Nd5 {[%clk 0:02:57.9]} 3. Nc3 {[%clk 0:02:55.2]} 3... Nb6 {[%clk
0:02:56.1]} 4. Nf3 {[%clk 0:02:52.6]} 4... d6 {[%clk 0:02:56.2]} 5. exd6 {[%clk
0:02:52.3]} 5... cxd6 {[%clk 0:02:55.3]} 6. d4 {[%clk 0:02:51.9]} 6... Bg4
{[%clk 0:02:53]} 7. Be2 {[%clk 0:02:51.9]} 7... g6 {[%clk 0:02:52.9]} 8. O-O
{[%clk 0:02:36.4]} 8... Bg7 {[%clk 0:02:52.7]} 9. h3 {[%clk 0:02:35.4]} 9...
Bxf3 {[%clk 0:02:52.3]} 10. Bxf3 {[%clk 0:02:35.6]} 10... Nc6 {[%clk 0:02:52.4]}
11. Ne2 {[%clk 0:02:31.6]} 11... O-O {[%clk 0:02:51.5]} 12. c3 {[%clk
0:02:31.7]} 12... Qd7 {[%clk 0:02:44.6]} 13. Ng3 {[%clk 0:02:31.3]} 13... Rac8
{[%clk 0:02:42.2]} 14. Ne4 {[%clk 0:02:28.2]} 14... h6 {[%clk 0:02:36]} 15. Re1
{[%clk 0:02:22]} 15... Kh7 {[%clk 0:02:35.4]} 16. h4 {[%clk 0:02:18]} 16... Rcd8
{[%clk 0:02:28.8]} 17. h5 {[%clk 0:02:17.9]} 17... g5 {[%clk 0:02:25.3]} 18. Qd3
{[%clk 0:02:09.2]} 18... f5 {[%clk 0:02:23.5]} 19. Ng3 {[%clk 0:01:51.1]} 19...
e6 {[%clk 0:02:23.6]} 20. Bd2 {[%clk 0:01:45.8]} 20... d5 {[%clk 0:02:19.9]} 21.
Re2 {[%clk 0:01:37.1]} 21... Nc4 {[%clk 0:02:13.3]} 22. Qc2 {[%clk 0:01:03.9]}
22... e5 {[%clk 0:01:53.7]} 23. dxe5 {[%clk 0:01:01.7]} 23... N4xe5 {[%clk
0:01:54.6]} 24. Rae1 {[%clk 0:00:56.8]} 24... Nxf3+ {[%clk 0:01:53.7]} 25. gxf3
{[%clk 0:00:56.6]} 25... d4 {[%clk 0:01:53.8]} 26. Re6 {[%clk 0:00:45.3]} 26...
Qd5 {[%clk 0:01:45]} 27. Qd3 {[%clk 0:00:30.8]} 27... Ne5 {[%clk 0:01:22.6]} 28.
R6xe5 {[%clk 0:00:27.8]} 28... Bxe5 {[%clk 0:01:23.5]} 29. Nxf5 {[%clk
0:00:26.9]} 29... dxc3 {[%clk 0:01:17.7]} 30. Nd4+ {[%clk 0:00:22]} 30... Kh8
{[%clk 0:01:16]} 31. Qg6 {[%clk 0:00:14.8]} 31... cxd2 {[%clk 0:01:03.7]} 32.
Qxh6+ {[%clk 0:00:14.4]} 32... Kg8 {[%clk 0:01:03.9]} 33. Qg6+ {[%clk
0:00:06.4]} 33... Bg7 {[%clk 0:01:03.5]} 34. Re7 {[%clk 0:00:05.7]} 34... d1=Q+
{[%clk 0:01:02.3]} 35. Kg2 {[%clk 0:00:05.7]} 35... Q1xf3+ {[%clk 0:01:01.6]}
36. Nxf3 {[%clk 0:00:05]} 36... Qxf3+ {[%clk 0:01:02.5]} 37. Kh2 {[%clk
0:00:03.9]} 37... Qxf2+ {[%clk 0:01:02.6]} 38. Kh1 {[%clk 0:00:04]} 38... Rd1+
{[%clk 0:01:00.9]} 0-1

[Event "Late-Titled-Tuesday-Blitz-April-30-2024"]
[Site "Chess.com"]
[Date "2024.04.30"]
[Round "9"]
[White "h4parah5"]
[Black "penguingm1"]
[Result "1/2-1/2"]
[WhiteElo "3030"]
[BlackElo "2883"]
[TimeControl "180+1"]
[EndTime "15:43:18 PDT"]
[Termination "Game drawn by agreement"]

1. Nf3 {[%clk 0:03:00.9]} 1... d5 {[%clk 0:03:00.2]} 2. e3 {[%clk 0:03:01]} 2...
Nf6 {[%clk 0:03:00.3]} 3. c4 {[%clk 0:03:01.4]} 3... e6 {[%clk 0:03:00.8]} 4. b3
{[%clk 0:03:01.5]} 4... b6 {[%clk 0:03:01.5]} 5. Bb2 {[%clk 0:03:01.7]} 5... Bb7
{[%clk 0:03:02.2]} 6. cxd5 {[%clk 0:03:01.8]} 6... exd5 {[%clk 0:02:27.5]} 7. g3
{[%clk 0:03:01.4]} 7... Bd6 {[%clk 0:02:23.4]} 8. Bg2 {[%clk 0:03:00.8]} 8...
O-O {[%clk 0:02:21.1]} 9. O-O {[%clk 0:03:00.9]} 9... Re8 {[%clk 0:02:21.7]} 10.
Nc3 {[%clk 0:03:00.9]} 10... a6 {[%clk 0:02:21.6]} 11. Rc1 {[%clk 0:03:01.2]}
11... Nbd7 {[%clk 0:02:21]} 12. Re1 {[%clk 0:03:01.6]} 12... Rc8 {[%clk
0:02:06.5]} 13. d3 {[%clk 0:03:00.3]} 13... c5 {[%clk 0:02:03.2]} 14. d4 {[%clk
0:02:50.5]} 14... c4 {[%clk 0:01:55]} 15. Nd2 {[%clk 0:02:43.4]} 15... b5 {[%clk
0:01:33.8]} 16. bxc4 {[%clk 0:02:42.3]} 16... bxc4 {[%clk 0:01:34.1]} 17. e4
{[%clk 0:02:42.8]} 17... dxe4 {[%clk 0:01:32.1]} 18. Ndxe4 {[%clk 0:02:42.1]}
18... Nxe4 {[%clk 0:01:31.7]} 19. Nxe4 {[%clk 0:02:40.8]} 19... Bb4 {[%clk
0:01:30.1]} 20. Re2 {[%clk 0:02:40.4]} 20... Bxe4 {[%clk 0:01:19.1]} 21. Bxe4
{[%clk 0:02:41.3]} 21... Nf6 {[%clk 0:01:08.7]} 22. Bf5 {[%clk 0:02:37.8]} 22...
Rc7 {[%clk 0:00:49.8]} 23. Rxe8+ {[%clk 0:02:35.8]} 23... Qxe8 {[%clk
0:00:50.7]} 24. Rc2 {[%clk 0:02:21.6]} 24... Qb5 {[%clk 0:00:41.6]} 25. Qf3
{[%clk 0:02:17.5]} 25... Bf8 {[%clk 0:00:34.2]} 26. Bc3 {[%clk 0:01:57.7]} 26...
Nd5 {[%clk 0:00:34.4]} 27. Be4 {[%clk 0:01:57.2]} 27... Nxc3 {[%clk 0:00:30]}
28. Rxc3 {[%clk 0:01:57]} 28... Bb4 {[%clk 0:00:28]} 29. Rc2 {[%clk 0:01:55]}
29... c3 {[%clk 0:00:28.4]} 30. h4 {[%clk 0:01:55.1]} 30... a5 {[%clk
0:00:26.7]} 31. a3 {[%clk 0:01:37.5]} 31... Bxa3 {[%clk 0:00:25.4]} 32. Rxc3
{[%clk 0:01:37.7]} 32... Rxc3 {[%clk 0:00:25.9]} 33. Qxc3 {[%clk 0:01:38]} 33...
Bf8 {[%clk 0:00:25]} 34. Qc7 {[%clk 0:01:31.8]} 34... a4 {[%clk 0:00:22.2]} 35.
Bc6 {[%clk 0:01:25.7]} 35... Qc4 {[%clk 0:00:20.6]} 36. Qd7 {[%clk 0:01:24.7]}
36... Qe6 {[%clk 0:00:08.1]} 37. Qxe6 {[%clk 0:01:13.8]} 37... fxe6 {[%clk
0:00:09]} 38. Bxa4 {[%clk 0:01:14]} 38... g6 {[%clk 0:00:07.8]} 39. Kf1 {[%clk
0:01:13.2]} 39... Bg7 {[%clk 0:00:08]} 40. Bb3 {[%clk 0:01:13.6]} 40... Kf7
{[%clk 0:00:07.8]} 41. d5 {[%clk 0:01:13.7]} 41... exd5 {[%clk 0:00:08.5]} 42.
Bxd5+ {[%clk 0:01:14.3]} 42... Kf6 {[%clk 0:00:09.4]} 43. f4 {[%clk 0:01:14.4]}
43... h6 {[%clk 0:00:10.2]} 44. Kf2 {[%clk 0:01:13.9]} 44... g5 {[%clk
0:00:10.2]} 45. Kf3 {[%clk 0:01:13.6]} 45... gxf4 {[%clk 0:00:08.8]} 46. gxf4
{[%clk 0:01:11.2]} 46... Bf8 {[%clk 0:00:09.3]} 47. Kg4 {[%clk 0:01:11.1]} 47...
Ba3 {[%clk 0:00:09.6]} 48. Kh5 {[%clk 0:01:11.1]} 48... Bc1 {[%clk 0:00:10.4]}
49. Kg4 {[%clk 0:01:11.5]} 49... Ba3 {[%clk 0:00:10.7]} 50. Be4 {[%clk
0:01:11.9]} 50... Bc1 {[%clk 0:00:11.6]} 51. Bd3 {[%clk 0:01:12.2]} 51... Bd2
{[%clk 0:00:12.2]} 1/2-1/2

[Event "Late-Titled-Tuesday-Blitz-April-30-2024"]
[Site "Chess.com"]
[Date "2024.04.30"]
[Round "9"]
[White "karinachess1"]
[Black "KogotBobra17"]
[Result "0-1"]
[WhiteElo "2601"]
[BlackElo "2777"]
[TimeControl "180+1"]
[EndTime "15:43:18 PDT"]
[Termination "KogotBobra17 won by resignation"]

1. d4 {[%clk 0:03:00.9]} 1... d5 {[%clk 0:03:00.6]} 2. c4 {[%clk 0:03:00.9]}
2... e6 {[%clk 0:03:01.2]} 3. Nc3 {[%clk 0:03:01.2]} 3... c6 {[%clk 0:03:01.1]}
4. e3 {[%clk 0:02:55]} 4... Nf6 {[%clk 0:03:00.7]} 5. Bd3 {[%clk 0:02:52.5]}
5... Nbd7 {[%clk 0:02:59.4]} 6. Nf3 {[%clk 0:02:48.7]} 6... dxc4 {[%clk
0:02:58.8]} 7. Bxc4 {[%clk 0:02:49.2]} 7... b5 {[%clk 0:02:59.2]} 8. Bd3 {[%clk
0:02:39]} 8... b4 {[%clk 0:02:57.5]} 9. Na4 {[%clk 0:02:35.5]} 9... Qa5 {[%clk
0:02:56]} 10. O-O {[%clk 0:02:31.1]} 10... c5 {[%clk 0:02:53.7]} 11. dxc5 {[%clk
0:02:20.4]} 11... Nxc5 {[%clk 0:02:54.6]} 12. Bc2 {[%clk 0:02:20]} 12... Bd7
{[%clk 0:02:52.3]} 13. Nxc5 {[%clk 0:02:17]} 13... Bxc5 {[%clk 0:02:53.2]} 14.
Ne5 {[%clk 0:01:45.7]} 14... Bb5 {[%clk 0:02:50]} 15. Qf3 {[%clk 0:01:44.3]}
15... O-O {[%clk 0:02:48.3]} 16. Rd1 {[%clk 0:01:19.7]} 16... Qc7 {[%clk
0:02:48]} 17. Nd3 {[%clk 0:00:57.2]} 17... Bd6 {[%clk 0:02:47.9]} 18. Bb3 {[%clk
0:00:37.5]} 18... Bxh2+ {[%clk 0:02:46.3]} 19. Kh1 {[%clk 0:00:38.2]} 19... Bc6
{[%clk 0:02:41.1]} 20. Qh3 {[%clk 0:00:34.4]} 20... Bd6 {[%clk 0:02:41.3]} 21.
Bd2 {[%clk 0:00:31.5]} 21... Ne4 {[%clk 0:02:40.3]} 22. Be1 {[%clk 0:00:27.8]}
22... Qb7 {[%clk 0:02:35.8]} 23. Rac1 {[%clk 0:00:25.5]} 23... Rac8 {[%clk
0:02:33.3]} 24. Bc2 {[%clk 0:00:24.9]} 24... h6 {[%clk 0:02:30.6]} 25. Qh4
{[%clk 0:00:15.8]} 25... Nf6 {[%clk 0:02:27.7]} 26. Qh3 {[%clk 0:00:14.4]} 26...
Rfd8 {[%clk 0:02:25.1]} 27. Bb1 {[%clk 0:00:13.3]} 27... Be4 {[%clk 0:02:19]}
28. f3 {[%clk 0:00:09.1]} 28... Bxd3 {[%clk 0:02:03.1]} 29. Rxc8 {[%clk
0:00:08.8]} 29... Rxc8 {[%clk 0:01:58.8]} 30. Bxd3 {[%clk 0:00:09.5]} 30... Be5
{[%clk 0:01:56.9]} 31. b3 {[%clk 0:00:09.6]} 31... Bc3 {[%clk 0:01:56.3]} 32.
Bh4 {[%clk 0:00:08.3]} 32... a5 {[%clk 0:01:49]} 33. Bxf6 {[%clk 0:00:07.3]}
33... Bxf6 {[%clk 0:01:49.9]} 34. Qg4 {[%clk 0:00:08.1]} 34... Rd8 {[%clk
0:01:47.4]} 35. Bc2 {[%clk 0:00:08.2]} 35... Rxd1+ {[%clk 0:01:46.6]} 36. Bxd1
{[%clk 0:00:09.1]} 36... Qd5 {[%clk 0:01:46.8]} 37. Be2 {[%clk 0:00:08.4]} 37...
Qd2 {[%clk 0:01:46.1]} 38. Qc4 {[%clk 0:00:07.5]} 38... Qxe3 {[%clk 0:01:44.7]}
39. Bd3 {[%clk 0:00:07.9]} 39... g6 {[%clk 0:01:43.7]} 40. Qe4 {[%clk
0:00:08.3]} 40... Qc1+ {[%clk 0:01:42.9]} 41. Kh2 {[%clk 0:00:08.9]} 41... Qg5
{[%clk 0:01:42]} 42. Qa8+ {[%clk 0:00:07.5]} 42... Kg7 {[%clk 0:01:41.8]} 43.
Qe4 {[%clk 0:00:08.4]} 43... Be5+ {[%clk 0:01:40.5]} 44. Kg1 {[%clk 0:00:08.4]}
44... Qc1+ {[%clk 0:01:40.1]} 45. Kf2 {[%clk 0:00:08.6]} 45... Qd2+ {[%clk
0:01:37.4]} 46. Qe2 {[%clk 0:00:08.7]} 46... Bd4+ {[%clk 0:01:36.3]} 47. Kg3
{[%clk 0:00:09.2]} 47... Qg5+ {[%clk 0:01:34.5]} 48. Kh3 {[%clk 0:00:09.8]}
48... Qh5+ {[%clk 0:01:30.7]} 49. Kg3 {[%clk 0:00:10.3]} 49... Be5+ {[%clk
0:01:31.1]} 50. f4 {[%clk 0:00:10.9]} 50... Qg5+ {[%clk 0:01:29.1]} 51. Kh3
{[%clk 0:00:11.4]} 51... Qxf4 {[%clk 0:01:28.6]} 52. Qf3 {[%clk 0:00:11.6]}
52... Qh2+ {[%clk 0:01:28.6]} 53. Kg4 {[%clk 0:00:12]} 53... h5+ {[%clk
0:01:29]} 54. Kg5 {[%clk 0:00:12.2]} 54... f6+ {[%clk 0:01:27.4]} 0-1

[Event "Late-Titled-Tuesday-Blitz-April-30-2024"]
[Site "Chess.com"]
[Date "2024.04.30"]
[Round "9"]
[White "maurovargas01"]
[Black "OnlyFlagNoSkill"]
[Result "1-0"]
[WhiteElo "1956"]
[BlackElo "1920"]
[TimeControl "180+1"]
[EndTime "15:43:21 PDT"]
[Termination "maurovargas01 won by checkmate"]

1. e4 {[%clk 0:02:27]} 1... c5 {[%clk 0:02:58.2]} 2. Nc3 {[%clk 0:02:26.9]} 2...
d6 {[%clk 0:02:57.8]} 3. f4 {[%clk 0:02:27.8]} 3... g6 {[%clk 0:02:55.6]} 4. Nf3
{[%clk 0:02:28.7]} 4... Bg7 {[%clk 0:02:55.9]} 5. Bb5+ {[%clk 0:02:29.1]} 5...
Bd7 {[%clk 0:02:55.4]} 6. Bxd7+ {[%clk 0:02:29.5]} 6... Qxd7 {[%clk 0:02:56.2]}
7. d3 {[%clk 0:02:30.4]} 7... e6 {[%clk 0:02:55.3]} 8. O-O {[%clk 0:02:30.6]}
8... Ne7 {[%clk 0:02:54]} 9. Qe1 {[%clk 0:02:31.5]} 9... O-O {[%clk 0:02:53.5]}
10. Bd2 {[%clk 0:02:32]} 10... d5 {[%clk 0:02:54]} 11. Rd1 {[%clk 0:02:32.5]}
11... Nbc6 {[%clk 0:02:49.4]} 12. Qh4 {[%clk 0:02:29.7]} 12... d4 {[%clk
0:02:38.7]} 13. Ne2 {[%clk 0:02:28.4]} 13... f5 {[%clk 0:02:35.3]} 14. Ng5
{[%clk 0:02:21.7]} 14... h6 {[%clk 0:02:29.3]} 15. Nf3 {[%clk 0:02:18.6]} 15...
e5 {[%clk 0:02:25.3]} 16. fxe5 {[%clk 0:02:17.3]} 16... Nxe5 {[%clk 0:02:24.7]}
17. Bxh6 {[%clk 0:02:16.2]} 17... Ng4 {[%clk 0:02:14.8]} 18. Bxg7 {[%clk
0:02:12.7]} 18... Kxg7 {[%clk 0:02:14.8]} 19. h3 {[%clk 0:02:12.3]} 19... Rh8
{[%clk 0:02:13.8]} 20. Qg3 {[%clk 0:02:02.7]} 20... Ne3 {[%clk 0:02:04.6]} 21.
Qe5+ {[%clk 0:01:57.4]} 21... Kg8 {[%clk 0:02:00.2]} 22. exf5 {[%clk 0:01:37.3]}
22... N7xf5 {[%clk 0:01:57.8]} 23. Qxc5 {[%clk 0:01:31.7]} 23... Rc8 {[%clk
0:01:37.3]} 24. Qa3 {[%clk 0:01:29.1]} 24... Nxd1 {[%clk 0:01:34.1]} 25. Rxd1
{[%clk 0:01:27.5]} 25... Ne3 {[%clk 0:01:34.2]} 26. Rc1 {[%clk 0:01:25.6]} 26...
Rxh3 {[%clk 0:01:04.7]} 27. Qb3+ {[%clk 0:01:12.2]} 27... Kg7 {[%clk 0:01:02.9]}
28. gxh3 {[%clk 0:01:08.3]} 28... Qxh3 {[%clk 0:01:01.2]} 29. Qxb7+ {[%clk
0:01:07.9]} 29... Kh6 {[%clk 0:00:59.9]} 30. Nfxd4 {[%clk 0:00:58]} 30... Rc7
{[%clk 0:00:41.3]} 31. Qe4 {[%clk 0:00:55.5]} 31... Rc5 {[%clk 0:00:37.5]} 32.
Qf4+ {[%clk 0:00:49.6]} 32... Rg5+ {[%clk 0:00:37.3]} 33. Kf2 {[%clk 0:00:40.9]}
33... Ng4+ {[%clk 0:00:34.1]} 34. Ke1 {[%clk 0:00:39.2]} 34... Kh5 {[%clk
0:00:30.2]} 35. Ng3+ {[%clk 0:00:37.2]} 35... Kh4 {[%clk 0:00:27.9]} 36. Nf3#
{[%clk 0:00:37.1]} 1-0

[Event "Late-Titled-Tuesday-Blitz-April-30-2024"]
[Site "Chess.com"]
[Date "2024.04.30"]
[Round "9"]
[White "1800_strength"]
[Black "lupta_robin"]
[Result "0-1"]
[WhiteElo "2783"]
[BlackElo "2622"]
[TimeControl "180+1"]
[EndTime "15:43:24 PDT"]
[Termination "lupta_robin won on time"]

1. g4 {[%clk 0:02:50.5]} 1... d5 {[%clk 0:02:57.3]} 2. Bg2 {[%clk 0:02:50.7]}
2... c6 {[%clk 0:02:44.6]} 3. g5 {[%clk 0:02:47]} 3... e5 {[%clk 0:02:42.7]} 4.
d4 {[%clk 0:02:47]} 4... e4 {[%clk 0:02:25.3]} 5. f3 {[%clk 0:02:39.1]} 5... f5
{[%clk 0:02:03.2]} 6. c4 {[%clk 0:02:34.1]} 6... h6 {[%clk 0:01:44.7]} 7. h4
{[%clk 0:02:24.9]} 7... hxg5 {[%clk 0:01:42.1]} 8. hxg5 {[%clk 0:02:25.8]} 8...
Rxh1 {[%clk 0:01:41.8]} 9. Bxh1 {[%clk 0:02:26.7]} 9... Bd6 {[%clk 0:01:34.8]}
10. Nc3 {[%clk 0:02:22.5]} 10... Ne7 {[%clk 0:01:31.8]} 11. e3 {[%clk
0:01:56.9]} 11... Nd7 {[%clk 0:01:29]} 12. fxe4 {[%clk 0:01:45.6]} 12... fxe4
{[%clk 0:01:24.3]} 13. Qh5+ {[%clk 0:01:45.6]} 13... g6 {[%clk 0:01:24.6]} 14.
Qh7 {[%clk 0:01:43.1]} 14... Nf8 {[%clk 0:01:23.1]} 15. Qh8 {[%clk 0:01:33.1]}
15... Bg4 {[%clk 0:01:12.1]} 16. Nge2 {[%clk 0:01:24.8]} 16... Qd7 {[%clk
0:01:09.5]} 17. Bd2 {[%clk 0:01:14.2]} 17... O-O-O {[%clk 0:01:06.8]} 18. O-O-O
{[%clk 0:01:11.1]} 18... Ne6 {[%clk 0:01:06.2]} 19. Qh4 {[%clk 0:01:10.2]} 19...
Bxe2 {[%clk 0:01:00.5]} 20. Nxe2 {[%clk 0:01:11.1]} 20... Nf5 {[%clk 0:01:00.4]}
21. Qg4 {[%clk 0:01:08.8]} 21... Rh8 {[%clk 0:00:57.7]} 22. Bg2 {[%clk
0:01:08.4]} 22... Rh4 {[%clk 0:00:56.3]} 23. Bh3 {[%clk 0:01:07.6]} 23... Rxg4
{[%clk 0:00:55.5]} 24. Bxg4 {[%clk 0:01:08.5]} 24... Nxg5 {[%clk 0:00:53.3]} 25.
Rh1 {[%clk 0:01:08.7]} 25... Nf3 {[%clk 0:00:49.8]} 26. c5 {[%clk 0:01:02.9]}
26... Be7 {[%clk 0:00:45.7]} 27. Ba5 {[%clk 0:00:45.4]} 27... b6 {[%clk
0:00:45.7]} 28. cxb6 {[%clk 0:00:42.4]} 28... axb6 {[%clk 0:00:46.6]} 29. Bxb6
{[%clk 0:00:43]} 29... Kb7 {[%clk 0:00:47.1]} 30. Ba5 {[%clk 0:00:42.8]} 30...
Bg5 {[%clk 0:00:46.3]} 31. Kb1 {[%clk 0:00:39.3]} 31... Bxe3 {[%clk 0:00:44.8]}
32. Bc3 {[%clk 0:00:36.4]} 32... Qe7 {[%clk 0:00:37.4]} 0-1